fUST/lending_fUST_20240302
["ID","MTS","AMOUNT","RATE_DAILY","PERIOD"]
[316015037,1709326240588,-500.0,0.00023998,2]
[316015038,1709326240597,-319.86755637,0.00023998,2]
[316015039,1709326240606,-155.17845522,0.00023999,2]
[316015041,1709326240615,-179.67111012,0.00023999,2]
[316015043,1709326240624,-170.32308806,0.00023999,2]
[316015045,1709326240634,-500.0,0.00023999,2]
[316015047,1709326240643,-500.0,0.00023999,2]
[316015049,1709326240653,-500.0,0.00023999,2]
[316015051,1709326240661,-500.0,0.00023999,2]
[316015053,1709326240672,-500.0,0.00023999,2]
[316015055,1709326240681,-500.0,0.00023999,2]
[316015057,1709326240691,-174.23266301,0.00023999,2]
[316015059,1709326240700,-500.0,0.00023999,2]
[316015061,1709326240709,-500.0,0.00023999,2]
[316015063,1709326240718,-500.0,0.00023999,2]
[316015065,1709326240728,-500.0,0.00023999,2]
[316015067,1709326240738,-500.0,0.00023999,2]
[316015069,1709326240747,-500.0,0.00023999,2]
[316015071,1709326240756,-500.0,0.00023999,2]
[316015073,1709326240765,-270.82,0.00023999,2]
[316015075,1709326240774,-500.0,0.00023999,2]
[316015076,1709326240784,-500.0,0.00023999,2]
[316015078,1709326240793,-500.0,0.00023999,2]
[316015080,1709326240802,-500.0,0.00023999,2]
[316015082,1709326240811,-500.0,0.00023999,2]
[316015084,1709326240820,-500.0,0.00023999,2]
[316015086,1709326240829,-500.0,0.00023999,2]
[316015088,1709326240839,-500.0,0.00023999,2]
[316015090,1709326240848,-500.0,0.00023999,2]
[316015092,1709326240857,-500.0,0.00023999,2]
[316015094,1709326240866,-500.0,0.00023999,2]
[316015097,1709326240876,-500.0,0.00023999,2]
[316015099,1709326240884,-500.0,0.00023999,2]
[316015101,1709326240894,-500.0,0.00023999,2]
[316015102,1709326240904,-500.0,0.00023999,2]
[316015105,1709326240916,-157.31272022,0.00023999,2]
[316015106,1709326240925,-500.0,0.00023999,2]
[316015108,1709326240934,-500.0,0.00023999,2]
[316015110,1709326240944,-521.87523845,0.00023999,2]
[316015113,1709326240954,-500.0,0.00023999,2]
[316015115,1709326240964,-500.0,0.00023999,2]
[316015117,1709326240973,-500.0,0.00023999,2]
[316015119,1709326240984,-500.0,0.00023999,2]
[316015120,1709326240994,-500.0,0.00023999,2]
[316015123,1709326241004,-500.0,0.00023999,2]
[316015124,1709326241013,-500.0,0.00023999,2]
[316015126,1709326241022,-1132.25,0.00023999,2]
[316015128,1709326241032,-1132.25,0.00023999,2]
[316015130,1709326241041,-1132.25,0.00023999,2]
[316015132,1709326241050,-1132.25,0.00023999,2]
[316015134,1709326241059,-1132.25,0.00023999,2]
[316015137,1709326241068,-1132.25,0.00023999,2]
[316015138,1709326241078,-1132.25,0.00023999,2]
[316015140,1709326241087,-1132.25,0.00023999,2]
[316015142,1709326241100,-1132.25,0.00023999,2]
[316015144,1709326241109,-1132.25,0.00023999,2]
[316015148,1709326241127,-1132.25,0.00023999,2]
[316015150,1709326241141,-1132.25,0.00023999,2]
[316015152,1709326241150,-1132.25,0.00023999,2]
[316015154,1709326241160,-1132.25,0.00023999,2]
[316015156,1709326241169,-1132.25,0.00023999,2]
[316015158,1709326241179,-1740.19,0.00023999,2]
[316015160,1709326241188,-1132.25,0.00023999,2]
[316015162,1709326241197,-1740.19,0.00023999,2]
[316015164,1709326241207,-1132.25,0.00023999,2]
[316015166,1709326241216,-1740.19,0.00023999,2]
[316015168,1709326241225,-1132.25,0.00023999,2]
[316015170,1709326241235,-1740.19,0.00023999,2]
[316015172,1709326241244,-1132.25,0.00023999,2]
[316015174,1709326241254,-1740.19,0.00023999,2]
[316015176,1709326241263,-1132.33,0.00023999,2]
[316015178,1709326241272,-1740.19,0.00023999,2]
[316015180,1709326241282,-1740.19,0.00023999,2]
[316015182,1709326241291,-1740.19,0.00023999,2]
[316015184,1709326241300,-1740.19,0.00023999,2]
[316015186,1709326241310,-1740.19,0.00023999,2]
[316015188,1709326241319,-1740.19,0.00023999,2]
[316015190,1709326241329,-1740.19,0.00023999,2]
[316015192,1709326241339,-1740.19,0.00023999,2]
[316015194,1709326241351,-1740.19,0.00023999,2]
[316015196,1709326241361,-1740.19,0.00023999,2]
[316015198,1709326241370,-1740.19,0.00023999,2]
[316015200,1709326241379,-1740.19,0.00023999,2]
[316015202,1709326241406,-1740.19,0.00023999,2]
[316015204,1709326241417,-1740.19,0.00023999,2]
[316015206,1709326241426,-1740.19,0.00023999,2]
[316015208,1709326241436,-1740.19,0.00023999,2]
[316015210,1709326241446,-1740.2925055,0.00023999,2]
[316015212,1709326241455,-500.0,0.00023999,2]
[316015214,1709326241465,-500.0,0.00023999,2]
[316015216,1709326241476,-500.0,0.00023999,2]
[316015218,1709326241487,-500.0,0.00023999,2]
[316015220,1709326241498,-500.0,0.00023999,2]
[316015222,1709326241508,-500.0,0.00023999,2]
[316015223,1709326241517,-500.0,0.00023999,2]
[316015225,1709326241527,-242.5,0.00023999,2]
[316015228,1709326241536,-500.0,0.00023999,2]
[316015229,1709326241547,-500.0,0.00023999,2]
[316015232,1709326241556,-500.0,0.00023999,2]
[316015234,1709326241566,-500.0,0.00023999,2]
[316015236,1709326241575,-500.0,0.00023999,2]
[316015238,1709326241585,-500.0,0.00023999,2]
[316015240,1709326241594,-500.0,0.00023999,2]
[316015242,1709326241604,-500.0,0.00023999,2]
[316015244,1709326241614,-407.95,0.00023999,2]
[316015246,1709326241624,-500.0,0.00023999,2]
[316015248,1709326241633,-500.0,0.00023999,2]
[316015250,1709326241644,-500.0,0.00023999,2]
[316015252,1709326241653,-500.0,0.00023999,2]
[316015254,1709326241663,-500.0,0.00023999,2]
[316015256,1709326241672,-500.0,0.00023999,2]
[316015258,1709326241682,-500.0,0.00023999,2]
[316015260,1709326241692,-500.0,0.00023999,2]
[316015262,1709326241702,-290.65405316,0.00023999,2]
[316015264,1709326241711,-500.0,0.00023999,2]
[316015266,1709326241721,-500.0,0.00023999,2]
[316015268,1709326241733,-500.0,0.00023999,2]
[316015270,1709326241743,-500.0,0.00023999,2]
[316015272,1709326241754,-500.0,0.00023999,2]
[316015274,1709326241764,-500.0,0.00023999,2]
[316015276,1709326241773,-500.0,0.00023999,2]
[316015278,1709326241782,-500.0,0.00023999,2]
[316015280,1709326241791,-500.0,0.00023999,2]
[316015282,1709326241801,-500.0,0.00023999,2]
[316015284,1709326241812,-500.0,0.00023999,2]
[316015286,1709326241821,-500.0,0.00023999,2]
[316015288,1709326241831,-500.0,0.00023999,2]
[316015290,1709326241841,-500.0,0.00023999,2]
[316015292,1709326241850,-499.2,0.00023999,2]
[316015294,1709326241859,-500.0,0.00023999,2]
[316015296,1709326241868,-500.0,0.00023999,2]
[316015298,1709326241878,-490.0,0.00023999,2]
[316015300,1709326241887,-368.08874618,0.00023999,2]
[316015302,1709326241897,-1956.985826,0.00023999,2]
[316015304,1709326241906,-1956.985826,0.00023999,2]
[316015306,1709326241917,-1956.985826,0.00023999,2]
[316015308,1709326241927,-1956.985826,0.00023999,2]
[316015311,1709326241936,-1956.985826,0.00023999,2]
[316015312,1709326241946,-1956.985826,0.00023999,2]
[316015314,1709326241955,-1956.985826,0.00023999,2]
[316015317,1709326241965,-1956.985826,0.00023999,2]
[316015319,1709326241974,-1956.985826,0.00023999,2]
[316015321,1709326241986,-741.34149108,0.00023999,2]
[316015323,1709326242004,-1061.90415234,0.00023999,2]
[316015326,1709326242016,-153.74018258,0.00023999,2]
[316015328,1709326242025,-2114.74791433,0.00024,3]
[316015330,1709326242034,-8425.89429949,0.00024,2]
[316015332,1709326242046,-12512.24747912,0.00024,2]
[316015334,1709326242056,-1887.70005001,0.00024,5]
[316015336,1709326242067,-355.98416334,0.00024,5]
[316015340,1709326242092,-21279.14150071,0.00024,5]
[316015342,1709326242104,-3243.98311088,0.00024,5]
[316015344,1709326242116,-2163.43126643,0.00024,5]
[316015346,1709326242128,-705.39713821,0.00024,5]
[316015349,1709326242139,-644.44286179,0.00024,5]
[316015439,1709326242930,-500.0,0.00022094,2]
[316015441,1709326242940,-360.86425518,0.00023996,2]
[316015448,1709326242991,-139.13574482,0.00023996,2]
[316015450,1709326243001,-218.99594802,0.00023997,2]
[316015452,1709326243013,-281.00405198,0.00023997,2]
[316015454,1709326243023,-500.0,0.00023997,2]
[316015456,1709326243033,-500.0,0.00023997,2]
[316015470,1709326243142,-500.0,0.00023998,2]
[316015472,1709326243153,-6920.72058762,0.00024,5]
[316015474,1709326243165,-338.86419644,0.00024,5]
[316015477,1709326243182,-500.0,0.00023998,2]
[316015478,1709326243192,-2500.05514596,0.00024,5]
[316015481,1709326243204,-2018.85111185,0.00024,5]
[316015926,1709326247637,-734.96,0.0002399,3]
[316015928,1709326247647,-212.08423896,0.00023998,2]
[316015930,1709326247660,-287.91576104,0.00023998,2]
[316015932,1709326247669,-429.35240276,0.00023998,2]
[316022225,1709327443273,-557.5480976,0.00019668,2]
[316022227,1709327443284,-155.19865428,0.00019669,2]
[316022229,1709327443294,-1250.25966196,0.00019669,2]
[316022231,1709327443306,-155.723056,0.0001967,2]
[316022233,1709327443316,-1416.43242631,0.0001967,2]
[316022259,1709327443549,-463.3330955,0.0001967,2]
[316022261,1709327443561,-179.57077703,0.00019671,2]
[316022263,1709327443570,-752.23146897,0.00019671,2]
[316024555,1709327467979,1362.14528464,0.00018899,5]
[316026646,1709327765653,382.0816562,0.00018528,2]
[316026647,1709327809713,155.19865428,0.00018528,2]
[316026648,1709327829560,155.19865428,0.00018528,2]
[316026649,1709327849576,155.19865428,0.00018528,2]
[316026650,1709327873571,256.82370663,0.00018528,2]
[316026651,1709327905892,1140.2596044,0.00018504,2]
[316026652,1709327911167,595.6313968,0.00018504,2]
[316026653,1709327965897,16906.44767313,0.00018442,2]
[316026705,1709328632309,-1879.76552181,0.00018109,2]
[316026707,1709328632319,-290.08429773,0.0001811,2]
[316026710,1709328632329,-179.556383,0.00018111,2]
[316026712,1709328632339,-3987.3042846,0.00018252,2]
[316026713,1709328632348,-1634.66331973,0.0001838,2]
[316026715,1709328632360,-1250.25966196,0.00018381,2]
[316026717,1709328632369,-6166.7192061,0.00018398,2]
[316026719,1709328632378,-14472.1987212,0.00018503,2]
[316026721,1709328632387,-186.65533944,0.00018791,2]
[316026723,1709328632397,-997.90789615,0.000189,2]
[316026725,1709328632406,-155.19865428,0.00019671,2]
[316026727,1709328632415,-612.47,0.00020538,3]
[316026729,1709328632424,-510.39,0.00020538,3]
[316026730,1709328632433,-500.20239318,0.00020547,2]
[316026731,1709328632442,-500.0,0.00020547,2]
[316026732,1709328632451,-500.0,0.00020547,2]
[316026733,1709328632461,-500.0,0.00020547,2]
[316026734,1709328632470,-500.0,0.00020547,2]
[316026735,1709328632479,-500.0,0.00020547,2]
[316026736,1709328632489,-500.0,0.00020547,2]
[316026737,1709328632500,-500.0,0.00020547,2]
[316026738,1709328632509,-500.0,0.00020547,2]
[316026739,1709328632518,-500.0,0.00020547,2]
[316026740,1709328632528,-500.0,0.00020547,2]
[316026741,1709328632537,-395.3420921,0.00020547,2]
[316026742,1709328632547,-500.0,0.00020547,2]
[316026743,1709328632556,-500.0,0.00020547,2]
[316026744,1709328632565,-545.69,0.00020547,2]
[316026745,1709328632574,-500.0,0.00020547,2]
[316026746,1709328632584,-500.0,0.00020547,2]
[316026747,1709328632593,-500.0,0.00020547,2]
[316026748,1709328632604,-594.19948246,0.00020547,2]
[316026749,1709328632613,-1323.23,0.00020547,2]
[316026750,1709328632622,-500.0,0.00020547,2]
[316026751,1709328632631,-500.0,0.00020547,2]
[316026752,1709328632642,-507.73,0.00020547,2]
[316026753,1709328632651,-500.0,0.00020547,2]
[316026754,1709328632660,-500.0,0.00020547,2]
[316026755,1709328632670,-500.0,0.00020547,2]
[316026756,1709328632679,-500.0,0.00020547,2]
[316026757,1709328632688,-500.0,0.00020547,2]
[316026758,1709328632698,-500.0,0.00020547,2]
[316026759,1709328632707,-500.0,0.00020548,2]
[316026760,1709328632716,-542.36889056,0.00020548,2]
[316026761,1709328632726,-368.75979067,0.00020548,2]
[316026762,1709328632735,-500.0,0.00020548,2]
[316026763,1709328632745,-500.0,0.00020548,2]
[316026764,1709328632755,-500.0,0.00020548,2]
[316026765,1709328632765,-178.11388434,0.00020548,2]
[316026766,1709328632774,-500.0,0.00020548,2]
[316026767,1709328632783,-500.0,0.00020548,2]
[316026768,1709328632793,-560.61513212,0.00020548,2]
[316026770,1709328632802,-500.0,0.00020548,2]
[316026772,1709328632812,-307.73170069,0.00020548,2]
[316026774,1709328632821,-500.0,0.00020548,2]
[316026776,1709328632830,-500.0,0.00020548,2]
[316026778,1709328632839,-500.82870046,0.00020548,2]
[316026780,1709328632848,-500.0,0.00020548,2]
[316026782,1709328632860,-500.92839523,0.00020548,2]
[316026784,1709328632870,-500.0,0.00020548,2]
[316026786,1709328632879,-500.0,0.00020548,2]
[316026788,1709328632888,-500.0,0.00020548,2]
[316026790,1709328632897,-500.0,0.00020548,2]
[316026792,1709328632907,-500.0,0.00020548,2]
[316026793,1709328632917,-516.12303306,0.00020548,2]
[316026795,1709328632926,-519.1538867,0.00020548,2]
[316026797,1709328632936,-500.0,0.00020548,2]
[316026799,1709328632945,-500.0,0.00020548,2]
[316026801,1709328632955,-500.0,0.00020548,2]
[316026803,1709328632964,-500.0,0.00020548,2]
[316026805,1709328632975,-209.21007188,0.00020548,2]
[316026807,1709328632984,-500.0,0.00020548,2]
[316026809,1709328632993,-500.0,0.00020548,2]
[316026811,1709328633002,-500.0,0.00020548,2]
[316026813,1709328633012,-500.0,0.00020548,2]
[316026815,1709328633024,-1335.24,0.00020548,2]
[316026818,1709328633034,-1335.24,0.00020548,2]
[316026819,1709328633045,-500.0,0.00020548,2]
[316026822,1709328633055,-500.0,0.00020548,2]
[316026823,1709328633064,-500.0,0.00020548,2]
[316026826,1709328633074,-500.0,0.00020548,2]
[316026828,1709328633084,-500.0,0.00020548,2]
[316026830,1709328633094,-500.0,0.00020548,2]
[316026831,1709328633104,-675.32,0.00020548,2]
[316026833,1709328633114,-675.32,0.00020548,2]
[316026835,1709328633124,-1323.23,0.00020548,2]
[316026837,1709328633133,-1323.23,0.00020548,2]
[316026839,1709328633143,-500.0,0.00020548,2]
[316026841,1709328633152,-500.0,0.00020548,2]
[316026843,1709328633161,-975.11,0.00020548,2]
[316026845,1709328633171,-975.11,0.00020548,2]
[316026847,1709328633180,-500.0,0.00020548,2]
[316026849,1709328633189,-500.0,0.00020548,2]
[316026851,1709328633199,-507.73,0.00020548,2]
[316026853,1709328633209,-507.73,0.00020548,2]
[316026855,1709328633218,-500.0,0.00020548,2]
[316026857,1709328633227,-500.0,0.00020548,2]
[316026859,1709328633236,-500.0,0.00020548,2]
[316026861,1709328633246,-187.53,0.00020548,2]
[316026863,1709328633255,-500.0,0.00020548,2]
[316026865,1709328633264,-590.56327125,0.00020548,2]
[316026867,1709328633273,-500.0,0.00020548,2]
[316026869,1709328633283,-500.0,0.00020548,2]
[316026871,1709328633293,-500.0,0.00020548,2]
[316026873,1709328633301,-500.0,0.00020548,2]
[316026875,1709328633311,-500.0,0.00020548,2]
[316026877,1709328633320,-500.0,0.00020548,2]
[316026879,1709328633329,-500.0,0.00020548,2]
[316026881,1709328633338,-500.0,0.00020548,2]
[316026883,1709328633348,-379.80063525,0.00020548,2]
[316027297,1709328641800,-926.94993445,0.00018108,2]
[316027299,1709328641810,-425.33,0.00020539,3]
[316027301,1709328641819,-333.64,0.00020539,3]
[316027303,1709328641829,-500.0,0.00020547,2]
[316027305,1709328641838,-500.0,0.00020547,2]
[316027307,1709328641848,-500.0,0.00020547,2]
[316027309,1709328641857,-4480.66,0.00020547,2]
[316027311,1709328641869,-120.19936475,0.00020548,2]
[316027313,1709328641879,-500.0,0.00020548,2]
[316027315,1709328641888,-500.0,0.00020548,2]
[316027317,1709328641897,-500.0,0.00020548,2]
[316027318,1709328641906,-500.0,0.00020548,2]
[316027320,1709328641916,-500.0,0.00020548,2]
[316027322,1709328641925,-500.0,0.00020548,2]
[316027324,1709328641934,-500.0,0.00020548,2]
[316027326,1709328641944,-500.0,0.00020548,2]
[316027328,1709328641953,-1154.74022108,0.00020549,5]
[316027330,1709328641963,-3541.91748552,0.00020549,4]
[316032098,1709328729718,250.0,0.00017439,2]
[316032100,1709328857546,24900.0,0.00017422,2]
[316032103,1709329183556,426.940279,0.00017007,2]
[316032127,1709329415397,5375.5894981,0.00017255,2]
[316032131,1709329436511,24900.0,0.00017354,2]
[316032134,1709329513154,163.40269544,0.00017267,2]
[316032144,1709329738058,346.000372,0.00017255,2]
[316032174,1709329832596,-155.00310006,0.00017913,2]
[316032176,1709329832605,-155.00310006,0.00017913,2]
[316032178,1709329832614,-155.00310006,0.00017913,2]
[316032179,1709329832624,-155.00310006,0.00017914,2]
[316032180,1709329832633,-155.00310006,0.00017914,2]
[316032182,1709329832642,-623.43272542,0.00017914,2]
[316032184,1709329832650,-155.00310006,0.00017914,2]
[316032186,1709329832659,-1250.25966196,0.00017914,2]
[316032187,1709329832668,-155.00310006,0.00017914,2]
[316032189,1709329832677,-155.00465014,0.00017915,2]
[316032190,1709329832687,-400.82246414,0.00017915,2]
[316032191,1709329832696,-155.00465014,0.00017916,2]
[316032192,1709329832705,-159.92299782,0.00017916,2]
[316032194,1709329832714,-155.00465014,0.00017916,2]
[316032196,1709329832723,-179.57077703,0.00017917,2]
[316032197,1709329832731,-8010.05157774,0.00017917,2]
[316032198,1709329832740,-2111.9879456,0.00017917,2]
[316032199,1709329832749,-155.00930056,0.00017918,2]
[316032201,1709329832758,-926.94993445,0.00017918,2]
[316032203,1709329832766,-1592.3001226,0.00017918,2]
[316032205,1709329832775,-538.36619156,0.00017918,2]
[316032206,1709329832785,-290.08429773,0.00017918,2]
[316032207,1709329832794,-155.723056,0.00017918,2]
[316032209,1709329832803,-155.00930056,0.00017919,2]
[316032210,1709329832812,-428.57901896,0.00017919,2]
[316032211,1709329832820,-155.00930056,0.00017919,2]
[316032212,1709329832829,-274.0342241,0.00017919,2]
[316032213,1709329832838,-609.18566663,0.00017919,2]
[316032283,1709329838741,-6913.605584,0.00017913,2]
[316032285,1709329838751,-135.48523544,0.00017919,2]
[316032287,1709329838760,-1879.76552181,0.00017919,2]
[316032289,1709329838770,-155.00930056,0.0001792,2]
[316032291,1709329838779,-300.0,0.00017933,2]
[316032293,1709329838788,-665.81994624,0.00018439,2]
[316032295,1709329838797,-1469.05571983,0.0001844,2]
[316032297,1709329838806,-10259.93772729,0.00018442,2]
[316032299,1709329838815,-1424.41521905,0.000189,2]
[316032300,1709329838825,-260.91613013,0.00019,2]
[316032302,1709329838834,-180.622579,0.00019178,2]
[316032304,1709329838843,-173.863024,0.00019178,2]
[316032306,1709329838852,-173.863024,0.00019739,2]
[316032308,1709329838861,-2278.4170546,0.0002,10]
[316032310,1709329838870,-151.6455667,0.0002,2]
[316032312,1709329838879,-1500.0,0.0002,2]
[316032314,1709329838888,-155.00930056,0.0002,2]
[316032316,1709329838897,-155.00465014,0.00020298,2]
[316032318,1709329838907,-238.53127687,0.00020299,2]
[316032320,1709329838916,-173.863024,0.000203,2]
[316032322,1709329838924,-1000.0,0.0002035,2]
[316032324,1709329838934,-1473.26221651,0.00020447,2]
[316032326,1709329838943,-1473.26221651,0.00020448,2]
[316032328,1709329838952,-958.65242304,0.00020448,2]
[316032330,1709329838962,-1473.26221651,0.00020448,2]
[316032332,1709329838970,-1473.26221651,0.00020449,2]
[316032334,1709329838980,-1473.26221651,0.00020449,2]
[316032336,1709329838988,-158.29,0.00020536,3]
[316032338,1709329838998,-344.8,0.00020536,3]
[316032340,1709329839007,-281.90687423,0.00020546,2]
[316032342,1709329839016,-500.0,0.00020546,2]
[316032353,1709329839106,-500.0,0.00020546,2]
[316032355,1709329839115,-500.0,0.00020546,2]
[316032357,1709329839124,-500.0,0.00020546,2]
[316032359,1709329839133,-200.30457798,0.00020546,2]
[316032361,1709329839141,-500.0,0.00020546,2]
[316032363,1709329839150,-412.53102785,0.00020546,2]
[316032365,1709329839159,-500.0,0.00020546,2]
[316032367,1709329839168,-500.0,0.00020546,2]
[316032369,1709329839177,-472.15061646,0.00020546,2]
[316032371,1709329839187,-500.0,0.00020546,2]
[316032373,1709329839196,-278.09714413,0.00020546,2]
[316032375,1709329839205,-500.0,0.00020546,2]
[316032377,1709329839214,-221.39922029,0.00020546,2]
[316032379,1709329839224,-500.0,0.00020546,2]
[316032381,1709329839233,-500.0,0.00020546,2]
[316032383,1709329839242,-500.0,0.00020546,2]
[316032384,1709329839251,-500.0,0.00020546,2]
[316032385,1709329839260,-500.0,0.00020546,2]
[316032386,1709329839269,-430.66793079,0.00020546,2]
[316032387,1709329839278,-500.0,0.00020546,2]
[316032388,1709329839288,-231.77306971,0.00020546,2]
[316032389,1709329839297,-500.0,0.00020546,2]
[316032390,1709329839307,-500.0,0.00020546,2]
[316032391,1709329839317,-500.0,0.00020546,2]
[316032392,1709329839327,-500.0,0.00020546,2]
[316032393,1709329839337,-500.0,0.00020546,2]
[316032394,1709329839347,-500.0,0.00020547,2]
[316032395,1709329839356,-396.77837823,0.00020547,2]
[316032396,1709329839365,-528.13257131,0.00020547,2]
[316032397,1709329839374,-500.0,0.00020547,2]
[316032398,1709329839383,-500.0,0.00020547,2]
[316032399,1709329839391,-500.0,0.00020547,2]
[316032400,1709329839401,-415.44055098,0.00020547,2]
[316032401,1709329839412,-500.0,0.00020547,2]
[316032403,1709329839422,-500.0,0.00020547,2]
[316032404,1709329839433,-500.0,0.00020547,2]
[316032405,1709329839445,-499.6293671,0.00020547,2]
[316032407,1709329839454,-500.0,0.00020547,2]
[316032409,1709329839463,-500.0,0.00020547,2]
[316032410,1709329839472,-500.0,0.00020547,2]
[316032412,1709329839480,-152.70981236,0.00020547,2]
[316032414,1709329839490,-732.31,0.00020547,2]
[316032416,1709329839499,-256.30798704,0.00020547,2]
[316032418,1709329839508,-500.0,0.00020547,2]
[316032420,1709329839518,-500.0,0.00020547,2]
[316032422,1709329839526,-500.0,0.00020547,2]
[316032424,1709329839536,-500.0,0.00020547,2]
[316032426,1709329839545,-481.38612482,0.00020547,2]
[316032428,1709329839553,-500.0,0.00020547,2]
[316032430,1709329839562,-522.90165729,0.00020547,2]
[316032432,1709329839571,-500.0,0.00020547,2]
[316032434,1709329839580,-500.0,0.00020547,2]
[316032436,1709329839588,-500.0,0.00020547,2]
[316032438,1709329839597,-500.0,0.00020547,2]
[316032440,1709329839606,-500.0,0.00020547,2]
[316032442,1709329839615,-500.0,0.00020547,2]
[316032443,1709329839624,-500.0,0.00020547,2]
[316032445,1709329839633,-500.0,0.00020547,2]
[316032447,1709329839642,-500.0,0.00020547,2]
[316032449,1709329839650,-501.66779249,0.00020547,2]
[316032451,1709329839659,-500.0,0.00020547,2]
[316032453,1709329839668,-500.0,0.00020547,2]
[316032455,1709329839677,-500.0,0.00020547,2]
[316032457,1709329839685,-500.0,0.00020547,2]
[316032459,1709329839694,-500.11407965,0.00020547,2]
[316032461,1709329839703,-500.0,0.00020547,2]
[316032463,1709329839713,-500.0,0.00020547,2]
[316032465,1709329839721,-500.0,0.00020547,2]
[316032467,1709329839730,-500.0,0.00020547,2]
[316032469,1709329839739,-500.0,0.00020547,2]
[316032471,1709329839748,-500.0,0.00020547,2]
[316032472,1709329839756,-500.0,0.00020547,2]
[316032474,1709329839765,-500.0,0.00020547,2]
[316032476,1709329839774,-500.0,0.00020547,2]
[316032478,1709329839782,-542.40879376,0.00020547,2]
[316032480,1709329839791,-500.0,0.00020547,2]
[316032482,1709329839800,-500.80442268,0.00020547,2]
[316032484,1709329839809,-500.0,0.00020547,2]
[316032486,1709329839818,-515.72568732,0.00020547,2]
[316032488,1709329839827,-500.27104441,0.00020547,2]
[316032490,1709329839835,-618.57571928,0.00020547,2]
[316032492,1709329839844,-500.0,0.00020547,2]
[316032494,1709329839853,-500.0,0.00020547,2]
[316032496,1709329839862,-500.0,0.00020547,2]
[316032498,1709329839871,-571.14185013,0.00020547,2]
[316032500,1709329839879,-500.66949718,0.00020547,2]
[316032502,1709329839888,-579.6253241,0.00020547,2]
[316032503,1709329839897,-500.0,0.00020547,2]
[316032505,1709329839906,-500.0,0.00020547,2]
[316032507,1709329839914,-500.0,0.00020547,2]
[316032509,1709329839923,-500.0,0.00020547,2]
[316032511,1709329839932,-500.0,0.00020547,2]
[316032513,1709329839942,-500.0,0.00020547,2]
[316032515,1709329839951,-500.0,0.00020547,2]
[316032517,1709329839960,-625.02019787,0.00020547,2]
[316032519,1709329839968,-380.19074267,0.00020547,2]
[316032521,1709329839977,-500.0,0.00020547,2]
[316032523,1709329839986,-515.52236747,0.00020547,2]
[316032525,1709329839994,-500.0,0.00020547,2]
[316032527,1709329840003,-500.0,0.00020547,2]
[316032529,1709329840012,-500.0,0.00020547,2]
[316032531,1709329840021,-500.0,0.00020547,2]
[316032533,1709329840031,-500.0,0.00020547,2]
[316032535,1709329840039,-500.0,0.00020547,2]
[316032537,1709329840048,-500.31385956,0.00020547,2]
[316032539,1709329840056,-426.64264298,0.00020547,2]
[316032540,1709329840066,-500.0,0.00020547,2]
[316032542,1709329840075,-500.0,0.00020547,2]
[316032544,1709329840084,-189.37773959,0.00020547,2]
[316032546,1709329840093,-335.70075275,0.00020547,2]
[316032548,1709329840102,-500.0,0.00020547,2]
[316032550,1709329840111,-500.0,0.00020547,2]
[316032552,1709329840120,-500.0,0.00020547,2]
[316032554,1709329840129,-500.0,0.00020547,2]
[316032556,1709329840138,-500.0,0.00020547,2]
[316032558,1709329840146,-500.0,0.00020547,2]
[316032560,1709329840155,-500.0,0.00020547,2]